fUSD/lending_fUSD_20241106
["ID","MTS","AMOUNT","RATE_DAILY","PERIOD"]
[341493020,1730922650470,-500.0,0.00027945,2]
[341493021,1730922650480,-851.78,0.00027945,2]
[341493022,1730922650490,-500.0,0.00027945,2]
[341493023,1730922650499,-500.0,0.00027945,2]
[341493024,1730922650509,-500.0,0.00027945,2]
[341493025,1730922650519,-500.0,0.00027945,2]
[341493026,1730922650528,-572.0,0.00027945,2]
[341493027,1730922650537,-500.0,0.00027945,2]
[341493028,1730922650547,-500.0,0.00027945,2]
[341493029,1730922650557,-500.0,0.00027945,2]
[341493030,1730922650566,-500.0,0.00027945,2]
[341493031,1730922650575,-500.0,0.00027945,2]
[341493032,1730922650585,-344.86213273,0.00027945,2]
[341493033,1730922650594,-500.0,0.00027945,2]
[341493034,1730922650603,-500.0,0.00027945,2]
[341493035,1730922650613,-659.87,0.00027945,2]
[341493036,1730922650623,-500.0,0.00027945,2]
[341493037,1730922650632,-595.61958717,0.00027945,2]
[341493038,1730922650641,-500.0,0.00027945,2]
[341493039,1730922650651,-500.0,0.00027945,2]
[341493040,1730922650660,-500.0,0.00027945,2]
[341493041,1730922650669,-1047.2,0.00027945,2]
[341493042,1730922650679,-500.0,0.00027945,2]
[341493043,1730922650688,-500.0,0.00027945,2]
[341493044,1730922650698,-500.0,0.00027945,2]
[341493045,1730922650708,-500.0,0.00027945,2]
[341493046,1730922650717,-500.0,0.00027945,2]
[341493047,1730922650727,-933.13,0.00027945,2]
[341493048,1730922650737,-500.0,0.00027945,2]
[341493049,1730922650747,-502.97,0.00027945,2]
[341493050,1730922650756,-500.0,0.00027945,2]
[341493051,1730922650766,-500.0,0.00027945,2]
[341493052,1730922650775,-500.0,0.00027945,2]
[341493053,1730922650785,-500.0,0.00027945,2]
[341493054,1730922650794,-500.0,0.00027945,2]
[341493055,1730922650804,-500.0,0.00027945,2]
[341493056,1730922650813,-663.55,0.00027945,2]
[341493057,1730922650823,-500.0,0.00027945,2]
[341493058,1730922650832,-500.0,0.00027945,2]
[341493059,1730922650842,-500.0,0.00027945,2]
[341493060,1730922650851,-500.0,0.00027945,2]
[341493061,1730922650860,-500.0,0.00027945,2]
[341493062,1730922650869,-500.0,0.00027945,2]
[341493063,1730922650878,-718.46,0.00027945,2]
[341493064,1730922650889,-500.0,0.00027945,2]
[341493065,1730922650899,-549.51,0.00027945,2]
[341493066,1730922650910,-500.0,0.00027945,2]
[341493067,1730922651128,-500.0,0.00027945,2]
[341493068,1730922651137,-500.0,0.00027945,2]
[341493069,1730922651147,-500.0,0.00027945,2]
[341493070,1730922651156,-500.0,0.00027945,2]
[341493071,1730922651165,-500.0,0.00027945,2]
[341493072,1730922651175,-500.0,0.00027945,2]
[341493073,1730922651184,-620.75,0.00027945,2]
[341493074,1730922651194,-500.0,0.00027945,2]
[341493075,1730922651205,-500.0,0.00027945,2]
[341493076,1730922651214,-500.0,0.00027945,2]
[341493077,1730922651223,-721.78,0.00027945,2]
[341493078,1730922651474,-500.0,0.00027945,2]
[341493079,1730922651547,-500.0,0.00027945,2]
[341493080,1730922651557,-578.58,0.00027945,2]
[341493081,1730922651566,-1169.27,0.00027945,2]
[341493082,1730922651575,-500.0,0.00027945,2]
[341493083,1730922651584,-500.0,0.00027945,2]
[341493084,1730922651593,-500.0,0.00027945,2]
[341493085,1730922651603,-626.9,0.00027945,2]
[341493086,1730922651612,-500.0,0.00027945,2]
[341493087,1730922651620,-500.0,0.00027945,2]
[341493088,1730922651630,-500.0,0.00027945,2]
[341493089,1730922651639,-500.0,0.00027945,2]
[341493090,1730922651648,-500.0,0.00027945,2]
[341493091,1730922651658,-500.0,0.00027945,2]
[341493092,1730922651667,-500.0,0.00027945,2]
[341493093,1730922651676,-528.97,0.00027945,2]
[341493094,1730922651685,-500.0,0.00027945,2]
[341493095,1730922651694,-500.0,0.00027945,2]
[341493096,1730922651707,-588.31,0.00027945,2]
[341493097,1730922651716,-500.0,0.00027945,2]
[341493098,1730922651725,-992.82,0.00027945,2]
[341493099,1730922651735,-500.0,0.00027945,2]
[341493100,1730922651745,-500.0,0.00027945,2]
[341493101,1730922651754,-500.0,0.00027945,2]
[341493102,1730922651763,-550.21299167,0.00027945,2]
[341493103,1730922651772,-949.12,0.00027945,2]
[341493104,1730922651781,-500.0,0.00027945,2]
[341493105,1730922651791,-500.0,0.00027945,2]
[341493106,1730922651800,-500.0,0.00027945,2]
[341493107,1730922651809,-500.0,0.00027945,2]
[341493108,1730922651818,-500.0,0.00027945,2]
[341493109,1730922651827,-500.0,0.00027945,2]
[341493110,1730922651837,-519.63103955,0.00027945,2]
[341493111,1730922651846,-628.45,0.00027945,2]
[341493112,1730922651855,-892.79,0.00027945,2]
[341493113,1730922651864,-500.0,0.00027945,2]
[341493114,1730922651874,-500.0,0.00027945,2]
[341493115,1730922651883,-261.65234449,0.00027945,2]
[341493116,1730922651893,-574.4,0.00027945,2]
[341493117,1730922651902,-500.0,0.00027945,2]
[341493118,1730922651911,-500.0,0.00027945,2]
[341493119,1730922651920,-500.0,0.00027945,2]
[341493120,1730922651929,-500.0,0.00027945,2]
[341493121,1730922651938,-235.84571994,0.00027945,2]
[341493122,1730922651948,-641.4,0.00027945,2]
[341493123,1730922651961,-549.20589335,0.00027945,2]
[341493124,1730922651970,-1259.56,0.00027945,2]
[341493125,1730922651979,-500.0,0.00027945,2]
[341493126,1730922651989,-500.0,0.00027945,2]
[341493127,1730922651998,-500.0,0.00027945,2]
[341493128,1730922652007,-500.0,0.00027945,2]
[341493129,1730922652016,-500.0,0.00027945,2]
[341493130,1730922652026,-500.0,0.00027945,2]
[341493131,1730922652035,-500.0,0.00027945,2]
[341493132,1730922652045,-500.0,0.00027945,2]
[341493133,1730922652054,-500.0,0.00027945,2]
[341493134,1730922652064,-941.09,0.00027945,2]
[341493135,1730922652073,-500.0,0.00027945,2]
[341493136,1730922652083,-500.0,0.00027945,2]
[341493137,1730922652093,-859.1,0.00027945,2]
[341493138,1730922652102,-500.0,0.00027945,2]
[341493139,1730922652111,-500.0,0.00027945,2]
[341493140,1730922652120,-500.0,0.00027945,2]
[341493141,1730922652130,-500.0,0.00027945,2]
[341493142,1730922652139,-500.0,0.00027945,2]
[341493143,1730922652150,-500.0,0.00027945,2]
[341493144,1730922652159,-1523.21,0.00027945,2]
[341493145,1730922652168,-616.69,0.00027945,2]
[341493146,1730922652177,-500.0,0.00027945,2]
[341493147,1730922652186,-536.1,0.00027945,2]
[341493148,1730922652196,-530.09,0.00027945,2]
[341493149,1730922652209,-500.0,0.00027945,2]
[341493150,1730922652218,-560.17482503,0.00027945,2]
[341493151,1730922652227,-791.56,0.00027945,2]
[341493152,1730922652236,-1724.32,0.00027945,2]
[341493153,1730922652246,-500.0,0.00027945,2]
[341493154,1730922652255,-1306.48,0.00027945,2]
[341493155,1730922652264,-500.0,0.00027945,2]
[341493156,1730922652274,-500.0,0.00027945,2]
[341493157,1730922652285,-989.59,0.00027945,2]
[341493158,1730922652294,-500.0,0.00027945,2]
[341493159,1730922652306,-500.0,0.00027945,2]
[341493160,1730922652315,-432.18398082,0.00027945,2]
[341493161,1730922652326,-508.25,0.00027945,2]
[341493162,1730922652336,-500.0,0.00027945,2]
[341493163,1730922652348,-2159.33,0.00027945,2]
[341493164,1730922652358,-1683.35,0.00027945,2]
[341493165,1730922652369,-536.59,0.00027945,2]
[341493166,1730922652380,-500.0,0.00027945,2]
[341493167,1730922652393,-1052.72,0.00027945,2]
[341493168,1730922652405,-523.52358466,0.00027945,2]
[341493169,1730922652416,-500.0,0.00027945,2]
[341493170,1730922652425,-500.0,0.00027945,2]
[341493171,1730922652437,-500.0,0.00027945,2]
[341493172,1730922652448,-500.0,0.00027945,2]
[341493173,1730922652458,-500.0,0.00027945,2]
[341493174,1730922652469,-500.0,0.00027945,2]
[341493175,1730922652478,-500.0,0.00027945,2]
[341493176,1730922652487,-1358.49,0.00027945,2]
[341493177,1730922652496,-500.0,0.00027945,2]
[341493178,1730922652506,-1719.08,0.00027945,2]
[341493179,1730922652516,-500.0,0.00027945,2]
[341493180,1730922652525,-500.0,0.00027945,2]
[341493181,1730922652534,-500.0,0.00027945,2]
[341493182,1730922652544,-310.4776836,0.00027945,2]
[341493183,1730922652554,-1081.12,0.00027945,2]
[341493184,1730922652563,-554.88,0.00027945,2]
[341493185,1730922652574,-608.63,0.00027945,2]
[341493186,1730922652583,-500.0,0.00027945,2]
[341493187,1730922652593,-500.0,0.00027945,2]
[341493188,1730922652603,-500.0,0.00027945,2]
[341493189,1730922652612,-412.52177841,0.00027945,2]
[341493190,1730922652621,-500.0,0.00027945,2]
[341493191,1730922652632,-655.47,0.00027945,2]
[341493192,1730922652641,-500.0,0.00027945,2]
[341493193,1730922652651,-576.36,0.00027945,2]
[341493194,1730922652660,-641.95,0.00027945,2]
[341493195,1730922652669,-500.0,0.00027945,2]
[341493196,1730922652678,-500.0,0.00027945,2]
[341493197,1730922652688,-500.0,0.00027945,2]
[341493198,1730922652697,-978.4,0.00027945,2]
[341493199,1730922652708,-2127.75,0.00027945,2]
[341493200,1730922652717,-500.0,0.00027945,2]
[341493201,1730922652727,-565.93,0.00027945,2]
[341493202,1730922652736,-1670.33,0.00027945,2]
[341493203,1730922652746,-500.0,0.00027945,2]
[341493204,1730922652756,-500.0,0.00027945,2]
[341493205,1730922652765,-500.0,0.00027945,2]
[341493206,1730922652774,-665.68,0.00027945,2]
[341493207,1730922652784,-500.0,0.00027945,2]
[341493208,1730922652793,-500.0,0.00027945,2]
[341493209,1730922652802,-500.0,0.00027945,2]
[341493210,1730922652811,-1219.79,0.00027945,2]
[341493211,1730922652820,-500.0,0.00027945,2]
[341493212,1730922652830,-500.0,0.00027945,2]
[341493213,1730922652841,-500.0,0.00027945,2]
[341493214,1730922652852,-500.0,0.00027945,2]
[341493215,1730922652863,-1209.34,0.00027945,2]
[341493216,1730922652874,-1277.02,0.00027945,2]
[341493217,1730922652885,-500.0,0.00027945,2]
[341493218,1730922652896,-500.0,0.00027945,2]
[341493219,1730922652907,-538.64,0.00027945,2]
[341493220,1730922652918,-500.0,0.00027945,2]
[341493221,1730922652929,-500.0,0.00027945,2]
[341493222,1730922652939,-1000.12,0.00027945,2]
[341493223,1730922652951,-500.0,0.00027945,2]
[341493224,1730922652960,-500.0,0.00027945,2]
[341493225,1730922652969,-1000.0,0.00027945,10]
[341493226,1730922652978,-802.32,0.00027945,2]
[341493227,1730922652988,-1976.19,0.00027945,2]
[341493228,1730922652998,-500.0,0.00027945,2]
[341493229,1730922653007,-500.0,0.00027945,2]
[341493230,1730922653017,-500.0,0.00027945,2]
[341493231,1730922653026,-569.46,0.00027945,2]
[341493232,1730922653035,-500.0,0.00027945,2]
[341493233,1730922653045,-500.0,0.00027945,2]
[341493234,1730922653055,-500.0,0.00027945,2]
[341493235,1730922653064,-894.15,0.00027945,2]
[341493236,1730922653074,-151.0,0.00027945,7]
[341493237,1730922653083,-151.0,0.00027945,7]
[341493238,1730922653094,-151.0,0.00027945,7]
[341493239,1730922653103,-151.0,0.00027945,7]
[341493240,1730922653113,-151.0,0.00027945,7]
[341493241,1730922653123,-152.812397,0.00027945,7]
[341493242,1730922653132,-151.0,0.00027945,7]
[341493243,1730922653142,-151.0,0.00027945,7]
[341493244,1730922653152,-155.378012,0.00027945,7]
[341493245,1730922653162,-155.378012,0.00027945,7]
[341493246,1730922653171,-151.0,0.00027945,7]
[341493247,1730922653181,-151.0,0.00027945,7]
[341493248,1730922653190,-151.0,0.00027945,7]
[341493249,1730922653201,-151.0,0.00027945,7]
[341493250,1730922653210,-151.0,0.00027945,7]
[341493251,1730922653220,-151.0,0.00027945,7]
[341493252,1730922653230,-151.0,0.00027945,7]
[341493253,1730922653239,-178.825587,0.00027945,7]
[341493254,1730922653249,-151.0,0.00027945,7]
[341493255,1730922653259,-178.825587,0.00027945,7]
[341493256,1730922653268,-151.0,0.00027945,7]
[341493257,1730922653278,-151.0,0.00027945,7]
[341493258,1730922653287,-294.887075,0.00027945,7]
[341493259,1730922653297,-151.0,0.00027945,7]
[341493260,1730922653306,-151.0,0.00027945,7]
[341493261,1730922653316,-152.149391,0.00027945,7]
[341493262,1730922653326,-641.332644,0.00027945,7]
[341493263,1730922653336,-151.0,0.00027945,7]
[341493264,1730922653345,-641.332644,0.00027945,7]
[341493265,1730922653355,-151.0,0.00027945,7]
[341493266,1730922653365,-151.0,0.00027945,7]
[341493267,1730922653375,-151.0,0.00027945,7]
[341493268,1730922653388,-824.163633,0.00027945,7]
[341493269,1730922653398,-824.163633,0.00027945,7]
[341493270,1730922653413,-500.91473184,0.00027973,5]
[341493271,1730922653424,-500.0,0.00027973,5]
[341493272,1730922653435,-500.0,0.00027973,5]
[341493273,1730922653446,-500.0,0.00027973,5]
[341493274,1730922653457,-171.88,0.00028001,2]
[341493275,1730922653469,-469.28565184,0.00028119,2]
[341493276,1730922653478,-166.95,0.0002814,2]
[341493277,1730922653488,-400.79548456,0.00028149,2]
[341493278,1730922653498,-249.51990081,0.00028219,2]
[341493279,1730922653508,-500.0,0.00028219,2]
[341493280,1730922653518,-500.0,0.00028219,2]
[341493281,1730922653528,-500.0,0.00028219,2]
[341493282,1730922653537,-500.0,0.00028219,2]
[341493283,1730922653547,-500.0,0.00028219,2]
[341493284,1730922653557,-500.0,0.00028219,2]
[341493285,1730922653567,-402.90463608,0.00028219,2]
[341493286,1730922653576,-500.0,0.00028219,2]
[341493287,1730922653586,-500.0,0.00028219,2]
[341493288,1730922653595,-500.0,0.00028219,2]
[341493289,1730922653605,-500.0,0.00028219,2]
[341493290,1730922653615,-500.0,0.00028219,2]
[341493291,1730922653624,-500.0,0.00028219,2]
[341493292,1730922653634,-500.0,0.00028219,2]
[341493293,1730922653643,-500.0,0.00028219,2]
[341493294,1730922653653,-500.0,0.00028219,2]
[341493295,1730922653664,-500.0,0.00028219,2]
[341493296,1730922653673,-500.0,0.00028219,2]
[341493297,1730922653684,-500.0,0.00028219,2]
[341493298,1730922653694,-747.29,0.00028219,2]
[341493299,1730922653706,-500.0,0.00028219,2]
[341493300,1730922653715,-614.44285439,0.00028219,2]
[341493301,1730922653725,-500.0,0.00028219,2]
[341493302,1730922653735,-605.97342462,0.00028219,2]
[341493303,1730922653746,-500.0,0.00028219,2]
[341493304,1730922653756,-500.0,0.00028219,2]
[341493305,1730922653766,-500.0,0.00028219,2]
[341493306,1730922653775,-500.0,0.00028219,2]
[341493307,1730922653784,-500.0,0.00028219,2]
[341493308,1730922653795,-524.69,0.00028219,2]
[341493309,1730922653804,-500.0,0.00028219,2]
[341493310,1730922653814,-500.0,0.00028219,2]
[341493311,1730922653824,-500.0,0.00028219,2]
[341493312,1730922653833,-500.0,0.00028219,2]
[341493313,1730922653842,-1051.01,0.00028219,2]
[341493314,1730922653852,-500.0,0.00028219,2]
[341493315,1730922653862,-500.0,0.00028219,2]
[341493316,1730922653872,-500.0,0.00028219,2]
[341493317,1730922653881,-851.78,0.00028219,2]
[341493318,1730922653891,-500.0,0.00028219,2]
[341493319,1730922653900,-500.0,0.00028219,2]
[341493320,1730922653909,-500.0,0.00028219,2]
[341493321,1730922653984,-500.0,0.00028219,2]
[341493322,1730922653994,-572.0,0.00028219,2]
[341493323,1730922654004,-500.0,0.00028219,2]
[341493324,1730922654013,-500.0,0.00028219,2]
[341493325,1730922654023,-500.0,0.00028219,2]
[341493326,1730922654032,-505.83989524,0.00028219,2]
[341493327,1730922654042,-239.76563072,0.00028219,2]
[341493328,1730922654051,-500.0,0.00028219,2]
[341493329,1730922654060,-500.0,0.00028219,2]
[341493330,1730922654070,-659.87,0.00028219,2]
[341493331,1730922654079,-501.69094635,0.00028219,2]
[341493332,1730922654089,-501.22093912,0.00028219,2]
[341493333,1730922654098,-500.0,0.00028219,2]
[341493334,1730922654108,-500.0,0.00028219,2]
[341493335,1730922654117,-1047.2,0.00028219,2]
[341493336,1730922654126,-583.27565915,0.00028219,2]
[341493337,1730922654136,-500.0,0.00028219,2]
[341493338,1730922654145,-500.0,0.00028219,2]
[341493339,1730922654154,-500.0,0.00028219,2]
[341493340,1730922654164,-500.0,0.00028219,2]
[341493341,1730922654173,-933.13,0.00028219,2]
[341493342,1730922654183,-500.0,0.00028219,2]
[341493343,1730922654193,-502.97,0.00028219,2]
[341493344,1730922654202,-500.0,0.00028219,2]
[341493345,1730922654211,-500.0,0.00028219,2]
[341493346,1730922654220,-500.0,0.00028219,2]
[341493347,1730922654230,-500.0,0.00028219,2]
[341493348,1730922654239,-500.0,0.00028219,2]
[341493349,1730922654248,-500.0,0.00028219,2]
[341493350,1730922654257,-663.55,0.00028219,2]
[341493351,1730922654267,-500.0,0.00028219,2]
[341493352,1730922654276,-500.0,0.00028219,2]
[341493353,1730922654286,-500.0,0.00028219,2]
[341493354,1730922654295,-500.0,0.00028219,2]
[341493355,1730922654304,-500.0,0.00028219,2]
[341493356,1730922654313,-500.0,0.00028219,2]
[341493357,1730922654323,-718.46,0.00028219,2]
[341493358,1730922654332,-500.0,0.00028219,2]
[341493359,1730922654341,-549.51,0.00028219,2]
[341493360,1730922654351,-500.0,0.00028219,2]
[341493361,1730922654359,-500.0,0.00028219,2]
[341493362,1730922654369,-500.0,0.00028219,2]
[341493363,1730922654378,-500.0,0.00028219,2]
[341493364,1730922654390,-500.0,0.00028219,2]
[341493365,1730922654399,-500.0,0.00028219,2]
[341493366,1730922654408,-500.0,0.00028219,2]
[341493367,1730922654417,-620.75,0.00028219,2]
[341493368,1730922654427,-500.0,0.00028219,2]
[341493369,1730922654436,-500.0,0.00028219,2]
[341493370,1730922654445,-500.0,0.00028219,2]
[341493371,1730922654455,-721.78,0.00028219,2]
[341493372,1730922654466,-500.0,0.00028219,2]
[341493373,1730922654476,-515.33439208,0.00028219,2]
[341493374,1730922654486,-578.58,0.00028219,2]
[341493375,1730922654496,-1169.27,0.00028219,2]
[341493376,1730922654507,-500.0,0.00028219,2]
[341493377,1730922654517,-500.0,0.00028219,2]
[341493378,1730922654528,-500.0,0.00028219,2]
[341493379,1730922654538,-626.9,0.00028219,2]
[341493380,1730922654548,-500.0,0.00028219,2]
[341493381,1730922654558,-500.0,0.00028219,2]
[341493382,1730922654568,-500.0,0.00028219,2]
[341493383,1730922654577,-267.49895866,0.00028219,2]
[341493384,1730922654587,-536.66331768,0.00028219,2]
[341493385,1730922654596,-500.0,0.00028219,2]
[341493386,1730922654605,-500.0,0.00028219,2]
[341493387,1730922654615,-528.97,0.00028219,2]
[341493388,1730922654624,-500.0,0.00028219,2]
[341493389,1730922654634,-500.0,0.00028219,2]
[341493390,1730922654643,-588.31,0.00028219,2]
[341493391,1730922654653,-500.0,0.00028219,2]
[341493392,1730922654662,-992.82,0.00028219,2]
[341493393,1730922654671,-500.0,0.00028219,2]
[341493394,1730922654681,-500.0,0.00028219,2]
[341493395,1730922654690,-500.0,0.00028219,2]
[341493396,1730922654700,-949.12,0.00028219,2]
[341493397,1730922654709,-500.0,0.00028219,2]
[341493398,1730922654718,-500.0,0.00028219,2]
[341493399,1730922654728,-622.98729388,0.00028219,2]
[341493400,1730922654737,-530.58032947,0.00028219,2]
[341493401,1730922654747,-500.0,0.00028219,2]
[341493402,1730922654756,-628.45,0.00028219,2]
[341493403,1730922654766,-892.79,0.00028219,2]
[341493404,1730922654776,-457.97092413,0.00028219,2]
[341493405,1730922654787,-506.76722236,0.00028219,2]
[341493406,1730922654796,-574.4,0.00028219,2]
[341493407,1730922654805,-500.0,0.00028219,2]
[341493408,1730922654815,-500.0,0.00028219,2]
[341493409,1730922654825,-500.0,0.00028219,2]
[341493410,1730922654835,-500.0,0.00028219,2]
[341493411,1730922654844,-151.0,0.00028219,7]
[341493412,1730922654854,-641.4,0.00028219,2]
[341493413,1730922654864,-1259.56,0.00028219,2]
[341493414,1730922654874,-500.0,0.00028219,2]
[341493415,1730922654884,-500.0,0.00028219,2]
[341493416,1730922654893,-500.0,0.00028219,2]
[341493417,1730922654903,-500.0,0.00028219,2]
[341493418,1730922654913,-500.0,0.00028219,2]
[341493419,1730922654922,-151.0,0.00028219,7]
[341493420,1730922654931,-500.0,0.00028219,2]
[341493421,1730922654940,-538.82456962,0.00028219,2]
[341493422,1730922654949,-500.0,0.00028219,2]
[341493423,1730922654960,-500.0,0.00028219,2]
[341493424,1730922654970,-151.0,0.00028219,7]
[341493425,1730922654980,-941.09,0.00028219,2]
[341493426,1730922654990,-500.0,0.00028219,2]
[341493427,1730922655000,-500.0,0.00028219,2]
[341493428,1730922655010,-859.1,0.00028219,2]
[341493429,1730922655020,-500.0,0.00028219,2]
[341493430,1730922655030,-500.0,0.00028219,2]
[341493431,1730922655039,-500.0,0.00028219,2]
[341493432,1730922655049,-500.0,0.00028219,2]
[341493433,1730922655058,-500.0,0.00028219,2]
[341493434,1730922655068,-151.0,0.00028219,7]
[341493435,1730922655077,-151.0,0.00028219,7]
[341493436,1730922655086,-1523.21,0.00028219,2]
[341493437,1730922655097,-616.69,0.00028219,2]
[341493438,1730922655106,-500.0,0.00028219,2]
[341493439,1730922655115,-536.1,0.00028219,2]
[341493440,1730922655124,-530.09,0.00028219,2]
[341493441,1730922655134,-151.0,0.00028219,7]
[341493442,1730922655143,-500.0,0.00028219,2]
[341493443,1730922655154,-791.56,0.00028219,2]
[341493444,1730922655164,-1724.32,0.00028219,2]
[341493445,1730922655174,-500.0,0.00028219,2]
[341493446,1730922655183,-1306.48,0.00028219,2]
[341493447,1730922655192,-500.0,0.00028219,2]
[341493448,1730922655201,-500.0,0.00028219,2]
[341493449,1730922655210,-989.59,0.00028219,2]
[341493450,1730922655220,-546.8751663,0.00028219,2]
[341493451,1730922655229,-500.0,0.00028219,2]
[341493452,1730922655238,-151.0,0.00028219,7]
[341493453,1730922655248,-508.25,0.00028219,2]
[341493454,1730922655257,-500.0,0.00028219,2]
[341493455,1730922655267,-2159.33,0.00028219,2]
[341493456,1730922655276,-1683.35,0.00028219,2]
[341493457,1730922655286,-536.59,0.00028219,2]
[341493458,1730922655295,-500.0,0.00028219,2]
[341493459,1730922655305,-1052.72,0.00028219,2]
[341493460,1730922655314,-500.0,0.00028219,2]
[341493461,1730922655323,-500.0,0.00028219,2]
[341493462,1730922655333,-500.0,0.00028219,2]
[341493463,1730922655342,-500.0,0.00028219,2]
[341493464,1730922655351,-257.79903292,0.00028219,2]
[341493465,1730922655360,-500.0,0.00028219,2]
[341493466,1730922655370,-500.0,0.00028219,2]
[341493467,1730922655379,-1358.49,0.00028219,2]
[341493468,1730922655391,-500.0,0.00028219,2]
[341493469,1730922655400,-1719.08,0.00028219,2]
[341493470,1730922655410,-500.0,0.00028219,2]
[341493471,1730922655419,-577.61572769,0.00028219,2]
[341493472,1730922655428,-500.0,0.00028219,2]
[341493473,1730922655439,-1081.12,0.00028219,2]
[341493474,1730922655448,-554.88,0.00028219,2]
[341493475,1730922655462,-608.63,0.00028219,2]
[341493476,1730922655472,-500.0,0.00028219,2]
[341493477,1730922655482,-500.0,0.00028219,2]
[341493478,1730922655491,-500.0,0.00028219,2]
[341493479,1730922655500,-500.0,0.00028219,2]
[341493480,1730922655509,-655.47,0.00028219,2]
[341493481,1730922655519,-500.0,0.00028219,2]
[341493482,1730922655528,-576.36,0.00028219,2]
[341493483,1730922655538,-641.95,0.00028219,2]
[341493484,1730922655548,-567.28346608,0.00028219,2]
[341493485,1730922655558,-500.0,0.00028219,2]
[341493486,1730922655567,-500.0,0.00028219,2]
[341493487,1730922655576,-978.4,0.00028219,2]
[341493488,1730922655586,-2127.75,0.00028219,2]
[341493489,1730922655595,-500.0,0.00028219,2]
[341493490,1730922655605,-565.93,0.00028219,2]
[341493491,1730922655614,-1670.33,0.00028219,2]
[341493492,1730922655624,-500.0,0.00028219,2]
[341493493,1730922655634,-500.0,0.00028219,2]
[341493494,1730922655643,-500.0,0.00028219,2]
[341493495,1730922655653,-665.68,0.00028219,2]
[341493496,1730922655663,-500.0,0.00028219,2]
[341493497,1730922655672,-500.0,0.00028219,2]
[341493498,1730922655682,-500.0,0.00028219,2]
[341493499,1730922655691,-1219.79,0.00028219,2]
[341493500,1730922655702,-500.0,0.00028219,2]
[341493501,1730922655711,-500.0,0.00028219,2]
[341493502,1730922655721,-500.0,0.00028219,2]
[341493503,1730922655731,-151.0,0.00028219,7]
[341493504,1730922655740,-500.0,0.00028219,2]
[341493505,1730922655751,-1277.02,0.00028219,2]
[341493506,1730922655761,-1209.34,0.00028219,2]
[341493507,1730922655771,-520.61580541,0.00028219,2]
[341493508,1730922655780,-151.0,0.00028219,7]
[341493509,1730922655790,-151.0,0.00028219,7]
[341493510,1730922655799,-538.64,0.00028219,2]
[341493511,1730922655808,-500.0,0.00028219,2]
[341493512,1730922655818,-500.0,0.00028219,2]
[341493513,1730922655827,-1000.12,0.00028219,2]
[341493514,1730922655837,-500.0,0.00028219,2]
[341493515,1730922655846,-500.0,0.00028219,2]
[341493516,1730922655855,-500.0,0.00028219,2]
[341493517,1730922655865,-151.0,0.00028219,7]
[341493518,1730922655874,-784.56853727,0.00028219,10]
[341493519,1730922655883,-151.0,0.00028219,7]